[Event "17th Delhi GM Open 2019-B"]
[Site "Delhi"]
[Date "2019.01.10"]
[Round "5"]
[White "Dhanasekar, K.."]
[Black "Aryan"]
[Result "1/2-1/2"]
[ECO "B01"]
[WhiteElo "1694"]
[BlackElo "1784"]
[Annotator "NA"]
[PlyCount "181"]
[EventDate "2019.01.09"]
[EventType "swiss"]
[EventCountry "IND"]
[SourceTitle "playchess.com"]
[Source "ChessBase"]
[SourceQuality "1"]
[TimeControl "3600+30"]

{[%evp 13,181,51,51,21,57,14,35,43,59,52,54,59,68,39,42,34,58,44,42,41,54,36,41,41,46,41,40,40,56,0,0,0,15,0,2,0,0,0,14,0,0,0,0,0,-5,-25,0,-17,0,-89,-92,-78,-70,-81,-57,-116,-90,-111,-64,-49,0,0,0,-108,-84,-99,-59,-267,-267,-274,-108,-94,-68,-54,-14,-43,-75,-74,-76,-77,-77,-84,-5,-5,-5,-5,0,0,0,-5,0,-420,-8,-8,-8,-8,-5,-8,-8,-66,-66,-66,-66,-66,-66,-66,-66,-342,-8,-8,-8,-8,-8,-8,-8,-8,-8,-8,-8,-8,-8,-8,-8,-8,0,-8,0,-8,0,0,0,-8,-8,-8,0,-8,0,0,0,-8,-8,-8,-8,-8,0,-8,-8,-8,-8,-8,0,-8,-8,-8,0,-66,-66,-66,-66,-66,-66,-66,-66,-66,-66,-66,0,-66,-66,-59]} 1. e4 {[%emt 0:00:00]} d5 2. exd5 {[%emt 0:00:00]} Qxd5 {[%emt 0:00:00]} 3. Nc3 {[%emt 0:00:00]} Qd8 {[%emt 0:00:00]} 4. d4 {[%emt 0:00:00]} Nf6 {[%emt 0:00:00]} 5. Bc4 {[%emt 0:00:00]} g6 {[%emt 0:00:00]} (5... a6 6. Bg5 h6 7. Bxf6 exf6 8. Nf3 Bb4 9. O-O Bxc3 10. bxc3 O-O 11. Re1 Nc6 12. Nh4 Na5 13. Bd3 {1-0 (21) Nakamura,H (2789)-Shaw,J (2454) Baku 2016}) 6. Nf3 {[%emt 0:00:00] B01: Scandinavian Defence} Bg7 {[%emt 0:00:00]} 7. h3 {[%emt 0:00:00]} O-O {[%emt 0:00:00] LiveBook: 6 Games} 8. Be3 {[%emt 0:00:00] White is slightly better.} c6 {[%emt 0:00:00]} 9. Qd2 {[%emt 0:00:00]} Nbd7 {[%emt 0:00:00]} 10. O-O {[%emt 0:00:00]} Nb6 {[%emt 0:00:00]} 11. Bb3 {[%emt 0:00:00]} a5 {[%emt 0:00:00] And now ...a4 would win.} 12. a4 {[%emt 0:00:00]} Nbd5 {[%emt 0:00:00]} 13. Nxd5 {[%emt 0:00:00]} cxd5 {[%emt 0:00:00]} 14. Bh6 $146 {[%emt 0:00:00]} b6 {[%emt 0:00:00]} 15. Bxg7 {[%emt 0:00:00]} Kxg7 {[%emt 0:00:00]} 16. Rfe1 {[%emt 0:00:00]} Qd6 {[%emt 0:00:00]} 17. Qe3 {[%emt 0:00:16]} e6 {[%emt 0:00:00]} 18. Ne5 {[%emt 0:04:36]} Ba6 {[%emt 0:00:00]} 19. c3 {[%emt 0:01:59]} Rae8 {[%emt 0:00:00]} 20. Bc2 {[%emt 0:03:57]} Ng8 {[%emt 0:00:00]} 21. f4 {[%emt 0:05:51]} (21. Nd3 $14) 21... f6 $11 {[%emt 0:03:18]} 22. Nf3 {[%emt 0:01:09]} Nh6 {[%emt 0:00:01]} 23. Qd2 {[%emt 0:09:49]} Qc7 {[%emt 0:03:33]} 24. g4 {[%emt 0:04:45]} Nf7 {[%emt 0:00:01]} 25. Qh2 {[%emt 0:10:21]} g5 {[%emt 0:00:01]} 26. f5 {[%emt 0:06:49]} Qxh2+ $1 {[%emt 0:00:01]} 27. Kxh2 {[%emt 0:00:01]} Bc8 {[%emt 0:01:45]} 28. fxe6 {[%emt 0:01:42]} Bxe6 {[%emt 0:00:01]} 29. Bb3 {[%emt 0:06:04]} Nd6 {[%emt 0:00:02]} 30. Nd2 {[%emt 0:04:37]} Rh8 {[%emt 0:00:01]} 31. Kg3 {[%emt 0:01:04]} (31. Re3 $11) 31... h5 $17 {[%emt 0:00:01]} 32. Bd1 {[%emt 0:03:00]} hxg4 {[%emt 0:00:01]} 33. hxg4 {[%emt 0:03:33]} f5 {[%emt 0:00:00]} 34. Bf3 {[%emt 0:03:56]} (34. gxf5 $15 Nxf5+ 35. Kg2) 34... f4+ {[%emt 0:00:00]} 35. Kg2 {[%emt 0:00:58]} Rh4 {[%emt 0:00:01]} 36. Re5 {[%emt 0:02:30]} Kf6 {[%emt 0:00:00] aiming for ...Nf7.} (36... Nf7 $5 {[%cal Rf7e5]} 37. Re2 Kf6 $17) 37. Rae1 {[%emt 0:00:25]} Nf7 {[%emt 0:00:01]} 38. R5e2 {[%emt 0:00:00]} (38. Rxd5 $11 Rb8 39. Ne4+ Kg7 40. Rb5) 38... Nh6 {[%emt 0:00:01]} 39. c4 {[%emt 0:00:00]} Nxg4 {[%emt 0:00:01]} 40. cxd5 $2 {[%emt 0:01:29]} (40. Bxg4 $15 Rxg4+ 41. Kf2) 40... Ne3+ $19 {[%emt 0:00:00]} 41. Rxe3 {[%emt 0:00:48]} fxe3 $2 {[%emt 0:00:00]} (41... Bh3+ $19 {has better winning chances.} 42. Kf2 fxe3+ 43. Rxe3 Rxe3 44. Kxe3 Bf5) 42. Ne4+ $17 {[%emt 0:00:01] [#]} Rxe4 $1 {[%emt 0:00:01]} 43. Bxe4 {[%emt 0:00:03] Endgame KRB-KRB} Bh3+ {[%emt 0:00:59] Discovered Attack} 44. Kf3 {[%emt 0:01:15] [#]} Bg2+ $1 {[%emt 0:00:00] Deflection} 45. Kxg2 {[%emt 0:00:12]} Rxe4 {[%emt 0:00:01] KR-KR} 46. Kf3 {[%emt 0:00:36]} Rxd4 {[%emt 0:00:00]} 47. Rxe3 {[%emt 0:01:09]} Rxd5 {[%emt 0:00:01]} (47... Rxa4 $17 {White must now prevent ...Rb4.} 48. Re6+ Kf5) 48. Rb3 $11 {[%emt 0:00:00]} Rd6 {[%emt 0:00:01]} 49. Rb5 {[%emt 0:00:00]} Rd3+ {[%emt 0:00:00]} 50. Ke4 {[%emt 0:00:08]} Rd6 {[%emt 0:00:15]} 51. Kf3 {[%emt 0:00:01]} Rc6 {[%emt 0:00:00]} 52. Ke4 $2 {[%emt 0:02:12]} (52. b4 $11 {and White stays safe.}) 52... Kg6 $2 {[%emt 0:00:00]} (52... Rc4+ $19 53. Kf3 Rb4) 53. Kf3 {[%emt 0:00:36]} Kh5 {[%emt 0:00:00]} 54. Kg3 {[%emt 0:00:27]} Rd6 {[%emt 0:00:01]} 55. Rb3 {[%emt 0:00:10]} Re6 {[%emt 0:00:54]} 56. Rb5 {[%emt 0:00:23]} (56. Kh3 $1 $11) 56... Re3+ $15 {[%emt 0:00:01]} 57. Kf2 {[%emt 0:01:02]} Re4 $1 {[%emt 0:00:00]} 58. Rxb6 {[%emt 0:00:15]} Rxa4 {[%emt 0:00:01] Strongly threatening ...Rb4.} 59. Ra6 {[%emt 0:00:00]} Kg4 {[%emt 0:00:00]} 60. b4 $2 {[%emt 0:00:38]} (60. Kg2 $1 $15) 60... Rxb4 $2 {[%emt 0:00:01]} ({Better is} 60... Ra2+ $19 61. Ke1 a4) 61. Rxa5 $11 {[%emt 0:00:00]} Rb2+ {[%emt 0:00:00]} 62. Kg1 $1 {[%emt 0:00:09]} Kh4 {[%emt 0:00:03]} (62... Rb3 {seems wilder.} 63. Ra2 Rf3 64. Kg2 Rg3+ 65. Kh1 Kh4) 63. Ra3 {[%emt 0:00:01]} g4 {[%emt 0:00:14]} 64. Rc3 {[%emt 0:00:31]} Rb8 {[%emt 0:00:02]} 65. Rd3 {[%emt 0:01:14]} Rf8 {[%emt 0:00:01]} 66. Kg2 {[%emt 0:00:01]} Rc8 {[%emt 0:00:16]} 67. Kg1 {[%emt 0:00:03]} Rc4 {[%emt 0:00:16]} 68. Rb3 {[%emt 0:01:24]} Kg5 {[%emt 0:00:01]} 69. Ra3 {[%emt 0:00:00]} Kf4 {[%emt 0:00:07]} 70. Rb3 {[%emt 0:00:23]} Re4 {[%emt 0:00:00]} 71. Kf2 {[%emt 0:01:22]} Rc4 {[%emt 0:00:01]} 72. Ra3 {[%emt 0:00:13]} Rc2+ {[%emt 0:00:01]} 73. Kg1 {[%emt 0:00:01]} Rc8 {[%emt 0:01:02]} 74. Ra4+ {[%emt 0:00:30]} Kg3 {[%emt 0:00:00]} (74... Kg5 {looks sharper.} 75. Ra3 Kh5 76. Kg2 Kh4 77. Re3 Rc2+) 75. Ra3+ {[%emt 0:00:00]} Kh4 {[%emt 0:00:00]} 76. Rb3 {[%emt 0:00:26]} Rh8 {[%emt 0:00:01]} 77. Ra3 {[%emt 0:00:24]} Rf8 {[%emt 0:00:01]} 78. Kg2 {[%emt 0:00:42]} Rf7 {[%emt 0:00:00]} 79. Rb3 {[%emt 0:00:01]} Rc7 {[%emt 0:00:01]} 80. Ra3 {[%emt 0:00:25]} Rc2+ {[%emt 0:00:01]} 81. Kg1 {[%emt 0:00:00]} Rc4 {[%emt 0:00:43]} 82. Rb3 $1 {[%emt 0:01:34]} Rd4 {[%emt 0:00:00]} 83. Ra3 {[%emt 0:00:00]} g3 {[%emt 0:01:06]} 84. Ra1 {[%emt 0:01:13]} (84. Ra7 $1 $11) 84... Kh3 $15 {[%emt 0:00:01]} 85. Rb1 {[%emt 0:00:09]} Rd2 {[%emt 0:00:00]} 86. Ra1 {[%emt 0:01:01]} Rb2 {[%emt 0:00:00]} 87. Rc1 $1 {[%emt 0:00:20]} Rg2+ {[%emt 0:00:01]} 88. Kh1 {[%emt 0:00:18]} Rh2+ {[%emt 0:00:00]} 89. Kg1 {[%emt 0:00:00]} Rg2+ {[%emt 0:00:04]} 90. Kh1 {[%emt 0:00:26]} Rf2 {[%emt 0:00:00]} 91. Kg1 {[%emt 0:00:00] Accuracy: White = 47%, Black = 47%.} 1/2-1/2